fUST/lending_fUST_20240813
["ID","MTS","AMOUNT","RATE_DAILY","PERIOD"]
[334734852,1723519841148,-500.0,0.00013698,2]
[334734853,1723519841159,-502.33741563,0.00013698,2]
[334734854,1723519841168,-500.0,0.00013698,2]
[334734855,1723519841177,-505.18466921,0.00013698,2]
[334734856,1723519841186,-500.0,0.00013698,2]
[334734857,1723519841196,-522.86595952,0.00013698,2]
[334734858,1723519841205,-504.91032273,0.00013698,2]
[334734859,1723519841214,-502.67557011,0.00013698,2]
[334734860,1723519841224,-500.0,0.00013698,2]
[334734861,1723519841234,-195.21056736,0.00013698,2]
[334734862,1723519841243,-502.96860766,0.00013698,2]
[334734863,1723519841253,-500.0,0.00013698,2]
[334734864,1723519841262,-500.0,0.00013698,2]
[334734865,1723519841272,-505.70706712,0.00013698,2]
[334734866,1723519841281,-506.8220351,0.00013698,2]
[334734867,1723519841291,-500.0,0.00013698,2]
[334734868,1723519841301,-500.0,0.00013698,2]
[334734869,1723519841310,-509.60447188,0.00013698,2]
[334734870,1723519841320,-327.2198573,0.00013698,2]
[334734871,1723519841329,-504.40007358,0.00013698,2]
[334734872,1723519841339,-500.87252512,0.00013698,2]
[334734873,1723519841348,-500.0,0.00013698,2]
[334734874,1723519841357,-500.0,0.00013698,2]
[334734875,1723519841367,-500.0,0.00013698,2]
[334734876,1723519841377,-500.0,0.00013698,2]
[334734877,1723519841387,-500.0,0.00013698,2]
[334734878,1723519841397,-500.0,0.00013698,2]
[334734879,1723519841407,-500.0,0.00013698,2]
[334734880,1723519841416,-500.0,0.00013698,2]
[334734881,1723519841426,-500.0,0.00013698,2]
[334734882,1723519841436,-500.0,0.00013698,2]
[334734883,1723519841446,-500.0,0.00013698,2]
[334734884,1723519841456,-500.0,0.00013698,2]
[334734885,1723519841466,-501.42204494,0.00013698,2]
[334734886,1723519841475,-506.54267885,0.00013698,2]
[334734887,1723519841485,-501.87082824,0.00013698,2]
[334734888,1723519841494,-504.09247793,0.00013698,2]
[334734889,1723519841503,-503.41868629,0.00013698,2]
[334734890,1723519841512,-500.0,0.00013698,2]
[334734891,1723519841522,-500.0,0.00013698,2]
[334734892,1723519841532,-509.67446597,0.00013698,2]
[334734893,1723519841546,-500.72057933,0.00013698,2]
[334734894,1723519841555,-500.0,0.00013698,2]
[334734895,1723519841565,-501.35365287,0.00013698,2]
[334734896,1723519841575,-509.07463409,0.00013698,2]
[334734897,1723519841585,-500.0,0.00013698,2]
[334734898,1723519841595,-503.97723441,0.00013698,2]
[334734899,1723519841604,-506.89525715,0.00013698,2]
[334734900,1723519841614,-500.99459913,0.00013698,2]
[334734901,1723519841624,-500.0,0.00013698,2]
[334734902,1723519841633,-506.89800643,0.00013698,2]
[334734903,1723519841642,-504.97025095,0.00013698,2]
[334734904,1723519841652,-500.0,0.00013698,2]
[334734905,1723519841661,-510.35696564,0.00013698,2]
[334734906,1723519841671,-505.0,0.00013698,2]
[334734907,1723519841680,-502.4300017,0.00013698,2]
[334734908,1723519841690,-501.5547354,0.00013698,2]
[334734909,1723519841699,-503.80614927,0.00013698,2]
[334734910,1723519841709,-501.85291966,0.00013698,2]
[334734911,1723519841718,-544.52894034,0.00013698,2]
[334734912,1723519841728,-500.0,0.00013698,2]
[334734913,1723519841737,-504.70948886,0.00013698,2]
[334734914,1723519841746,-500.0,0.00013698,2]
[334734915,1723519841756,-500.0,0.00013698,2]
[334734916,1723519841765,-586.27,0.00013698,2]
[334734917,1723519841774,-500.0,0.00013698,2]
[334734918,1723519841783,-504.55040292,0.00013698,2]
[334734919,1723519841795,-500.0,0.00013698,2]
[334734920,1723519841804,-501.97427302,0.00013698,2]
[334734921,1723519841813,-500.0,0.00013698,2]
[334734922,1723519841822,-508.4712836,0.00013698,2]
[334734923,1723519841832,-506.15263485,0.00013698,2]
[334734924,1723519841841,-500.0,0.00013698,2]
[334734925,1723519841851,-500.0,0.00013698,2]
[334734926,1723519841860,-505.5316567,0.00013698,2]
[334734927,1723519841869,-500.0,0.00013698,2]
[334734928,1723519841879,-508.85357317,0.00013698,2]
[334734929,1723519841888,-500.0,0.00013698,2]
[334734930,1723519841898,-503.06175739,0.00013698,2]
[334734931,1723519841907,-500.0,0.00013698,2]
[334734932,1723519841916,-503.0111374,0.00013698,2]
[334734933,1723519841925,-500.0,0.00013698,2]
[334734934,1723519841934,-500.0,0.00013698,2]
[334734935,1723519841944,-620.20536172,0.00013698,2]
[334734936,1723519841953,-500.0,0.00013698,2]
[334734937,1723519841962,-500.0,0.00013698,2]
[334734938,1723519841971,-500.0,0.00013698,2]
[334734939,1723519841980,-500.0,0.00013698,2]
[334734940,1723519841991,-586.86283865,0.00013698,2]
[334734941,1723519842001,-599.42,0.00013698,2]
[334734942,1723519842011,-500.0,0.00013698,2]
[334734943,1723519842020,-509.00161292,0.00013698,2]
[334734944,1723519842029,-500.0,0.00013698,2]
[334734945,1723519842039,-500.0,0.00013698,2]
[334734946,1723519842049,-516.59155626,0.00013698,2]
[334734947,1723519842058,-505.65787583,0.00013698,2]
[334734948,1723519842068,-508.7932602,0.00013698,2]
[334734949,1723519842077,-506.00298205,0.00013698,2]
[334734950,1723519842089,-504.47854233,0.00013698,2]
[334734951,1723519842099,-501.76176208,0.00013698,2]
[334734952,1723519842111,-500.0,0.00013698,2]
[334734953,1723519842122,-500.0,0.00013698,2]
[334734954,1723519842134,-523.06,0.00013698,2]
[334734955,1723519842146,-500.0,0.00013698,2]
[334734956,1723519842155,-500.0,0.00013698,2]
[334734957,1723519842166,-500.0,0.00013698,2]
[334734958,1723519842175,-512.66756479,0.00013698,2]
[334734959,1723519842184,-500.0,0.00013698,2]
[334734960,1723519842194,-500.0,0.00013698,2]
[334734961,1723519842203,-500.0,0.00013698,2]
[334734962,1723519842212,-500.0,0.00013698,2]
[334734963,1723519842221,-500.0,0.00013698,2]
[334734964,1723519842231,-500.0,0.00013698,2]
[334734965,1723519842240,-501.47640999,0.00013698,2]
[334734966,1723519842249,-501.15084829,0.00013698,2]
[334734967,1723519842258,-500.0,0.00013698,2]
[334734968,1723519842267,-500.0,0.00013698,2]
[334734969,1723519842279,-525.3092981,0.00013698,2]
[334734970,1723519842290,-500.0,0.00013698,2]
[334734971,1723519842300,-500.0,0.00013698,2]
[334734972,1723519842309,-500.0,0.00013698,2]
[334734973,1723519842319,-500.0,0.00013698,2]
[334734974,1723519842329,-500.0,0.00013698,2]
[334734975,1723519842338,-500.0,0.00013698,2]
[334734976,1723519842347,-435.90130151,0.00013698,2]
[334734977,1723519842357,-500.0,0.00013698,2]
[334734978,1723519842366,-500.0,0.00013698,2]
[334734979,1723519842375,-500.0,0.00013698,2]
[334734980,1723519842385,-500.0,0.00013698,2]
[334734981,1723519842394,-500.0,0.00013698,2]
[334734982,1723519842403,-500.0,0.00013698,2]
[334734983,1723519842413,-500.0,0.00013698,2]
[334734984,1723519842422,-752.11,0.00013698,2]
[334734985,1723519842431,-417.34554894,0.00013698,2]
[334734986,1723519842441,-505.51406527,0.00013698,2]
[334734987,1723519842450,-500.0,0.00013698,2]
[334734988,1723519842460,-500.0,0.00013698,2]
[334734989,1723519842469,-500.0,0.00013698,2]
[334734990,1723519842479,-625.4,0.00013698,2]
[334734991,1723519842488,-500.0,0.00013698,2]
[334734992,1723519842498,-500.0,0.00013698,2]
[334734993,1723519842508,-500.0,0.00013698,2]
[334734994,1723519842518,-500.0,0.00013698,2]
[334734995,1723519842527,-500.0,0.00013698,2]
[334734996,1723519842541,-503.6887129,0.00013698,2]
[334734997,1723519842550,-621.77354407,0.00013698,2]
[334734998,1723519842560,-500.0,0.00013698,2]
[334734999,1723519842570,-504.70202095,0.00013698,2]
[334735000,1723519842580,-547.48,0.00013698,2]
[334735001,1723519842589,-500.0,0.00013698,2]
[334735002,1723519842599,-500.0,0.00013698,2]
[334735003,1723519842610,-500.0,0.00013698,2]
[334735004,1723519842620,-500.0,0.00013698,2]
[334735005,1723519842629,-500.0,0.00013698,2]
[334735006,1723519842638,-500.0,0.00013698,2]
[334735007,1723519842648,-500.0,0.00013698,2]
[334735008,1723519842658,-503.70916886,0.00013698,2]
[334735009,1723519842667,-500.0,0.00013698,2]
[334735010,1723519842676,-500.0,0.00013698,2]
[334735011,1723519842686,-550.93,0.00013698,2]
[334735012,1723519842698,-1103.37,0.00013698,2]
[334735013,1723519842708,-500.0,0.00013698,2]
[334735014,1723519842718,-4800.36,0.00013698,2]
[334735015,1723519842728,-502.15039408,0.00013698,2]
[334735016,1723519842739,-500.0,0.00013698,2]
[334735017,1723519842754,-500.0,0.00013698,2]
[334735018,1723519842765,-687.76,0.00013698,2]
[334735019,1723519842775,-825.24,0.00013698,2]
[334735020,1723519842787,-838.4,0.00013698,2]
[334735021,1723519842796,-512.20199397,0.00013698,2]
[334735022,1723519842805,-500.0,0.00013698,2]
[334735023,1723519842815,-500.0,0.00013698,2]
[334735024,1723519842826,-500.0,0.00013698,2]
[334735025,1723519842835,-500.0,0.00013698,2]
[334735026,1723519842845,-806.46,0.00013698,2]
[334735027,1723519842855,-1791.65,0.00013698,2]
[334735028,1723519842865,-286.74941357,0.00013698,2]
[334735029,1723519842875,-500.6539124,0.00013698,2]
[334735030,1723519842884,-500.0,0.00013698,2]
[334735031,1723519843029,-500.0,0.00013698,2]
[334735032,1723519843040,-500.0,0.00013698,2]
[334735033,1723519843049,-500.0,0.00013698,2]
[334735034,1723519843059,-500.0,0.00013698,2]
[334735035,1723519843068,-710.5,0.00013698,2]
[334735036,1723519843077,-801.59,0.00013698,2]
[334735037,1723519843087,-1041.59,0.00013698,2]
[334735038,1723519843096,-505.9565507,0.00013698,2]
[334735039,1723519843106,-576.07,0.00013698,2]
[334735040,1723519843116,-500.0,0.00013698,2]
[334735041,1723519843125,-501.91736511,0.00013698,2]
[334735042,1723519843135,-419.08746111,0.00013698,2]
[334735043,1723519843144,-860.96,0.00013698,2]
[334735044,1723519843154,-500.0,0.00013698,2]
[334735045,1723519843165,-5033.32,0.00013698,2]
[334735046,1723519843174,-538.88936647,0.00013698,2]
[334735047,1723519843184,-3240.79,0.00013698,2]
[334735048,1723519843194,-503.34967199,0.00013698,2]
[334735049,1723519843203,-179.53129533,0.00013698,2]
[334735050,1723519843213,-500.0,0.00013698,2]
[334735051,1723519843222,-1202.82,0.00013698,2]
[334735052,1723519843231,-500.0,0.00013698,2]
[334735053,1723519843241,-505.50713472,0.00013698,2]
[334735054,1723519843251,-500.0,0.00013698,2]
[334735055,1723519843260,-970.44,0.00013698,2]
[334735056,1723519843269,-510.26480008,0.00013698,2]
[334735057,1723519843278,-500.0,0.00013698,2]
[334735058,1723519843288,-2000.0,0.00013698,2]
[334735059,1723519843298,-500.0,0.00013698,2]
[334735060,1723519843307,-1178.14169129,0.00013698,2]
[334735061,1723519843317,-500.0,0.00013698,2]
[334735062,1723519843326,-983.12,0.00013698,2]
[334735063,1723519843335,-561.35168058,0.00013698,2]
[334735064,1723519843344,-500.0,0.00013698,2]
[334735065,1723519843353,-500.0,0.00013698,2]
[334735068,1723519843362,-502.93887016,0.00013698,2]
[334735069,1723519843372,-800.08,0.00013698,2]
[334735070,1723519843381,-500.0,0.00013698,2]
[334735071,1723519843390,-500.0,0.00013698,2]
[334735072,1723519843400,-500.0,0.00013698,2]
[334735073,1723519843409,-500.0,0.00013698,2]
[334735074,1723519843419,-500.0,0.00013698,2]
[334735075,1723519843427,-778.68,0.00013698,2]
[334735076,1723519843437,-500.0,0.00013698,2]
[334735077,1723519843446,-500.0,0.00013698,2]
[334735078,1723519843457,-500.0,0.00013698,2]
[334735079,1723519843466,-500.0,0.00013698,2]
[334735080,1723519843475,-540.34874411,0.00013698,2]
[334735081,1723519843484,-500.0,0.00013698,2]
[334735082,1723519843494,-506.66210793,0.00013698,2]
[334735083,1723519843503,-816.07,0.00013698,2]
[334735085,1723519843512,-502.99478734,0.00013698,2]
[334735086,1723519843523,-500.0,0.00013698,2]
[334735087,1723519843538,-615.46,0.00013698,2]
[334735088,1723519843548,-500.0,0.00013698,2]
[334735089,1723519843558,-500.0,0.00013698,2]
[334735090,1723519843567,-500.0,0.00013698,2]
[334735091,1723519843578,-773.65,0.00013698,2]
[334735092,1723519843587,-3078.21,0.00013698,2]
[334735093,1723519843596,-500.0,0.00013698,2]
[334735094,1723519843606,-288.9447457,0.00013698,2]
[334735095,1723519843617,-500.0,0.00013698,2]
[334735096,1723519843626,-1469.42,0.00013698,2]
[334735097,1723519843636,-500.0,0.00013698,2]
[334735098,1723519843645,-502.58248645,0.00013698,2]
[334735099,1723519843655,-500.0,0.00013698,2]
[334735100,1723519843664,-500.0,0.00013698,2]
[334735101,1723519843674,-504.17943454,0.00013698,2]
[334735102,1723519843683,-503.97228914,0.00013698,2]
[334735103,1723519843692,-500.0,0.00013698,2]
[334735104,1723519843702,-1070.13,0.00013698,2]
[334735105,1723519843711,-500.0,0.00013698,2]
[334735106,1723519843721,-500.0,0.00013698,2]
[334735107,1723519843730,-500.0,0.00013698,2]
[334735108,1723519843740,-508.89044468,0.00013698,2]
[334735109,1723519843749,-1045.55,0.00013698,2]
[334735110,1723519843759,-500.0,0.00013698,2]
[334735111,1723519843768,-500.0,0.00013698,2]
[334735112,1723519843777,-500.0,0.00013698,2]
[334735113,1723519843787,-1053.34,0.00013698,2]
[334735114,1723519843797,-500.0,0.00013698,2]
[334735115,1723519843806,-639.24,0.00013698,2]
[334735116,1723519843815,-500.0,0.00013698,2]
[334735117,1723519843825,-500.0,0.00013698,2]
[334735118,1723519843834,-505.23308106,0.00013698,2]
[334735119,1723519843843,-505.5050666,0.00013698,2]
[334735120,1723519843853,-500.0,0.00013698,2]
[334735121,1723519843862,-500.0,0.00013698,2]
[334735122,1723519843871,-500.0,0.00013698,2]
[334735123,1723519843880,-500.0,0.00013698,2]
[334735124,1723519843890,-500.0,0.00013698,2]
[334735125,1723519843899,-503.4939137,0.00013698,2]
[334735126,1723519843908,-500.0,0.00013698,2]
[334735127,1723519843918,-500.0,0.00013698,2]
[334735128,1723519843929,-500.0,0.00013698,2]
[334735129,1723519843940,-500.0,0.00013698,2]
[334735130,1723519843951,-549.09,0.00013698,2]
[334735131,1723519843962,-500.0,0.00013698,2]
[334735132,1723519843971,-500.0,0.00013698,2]
[334735133,1723519843981,-3024.6,0.00013698,2]
[334735134,1723519843990,-939.93,0.00013698,2]
[334735135,1723519843999,-500.0,0.00013698,2]
[334735136,1723519844008,-500.0,0.00013698,2]
[334735137,1723519844017,-507.12364159,0.00013698,2]
[334735138,1723519844026,-500.0,0.00013698,2]
[334735139,1723519844035,-500.0,0.00013698,2]
[334735140,1723519844052,-2037.46,0.00013698,2]
[334735141,1723519844062,-2037.46,0.00013698,2]
[334735142,1723519844072,-500.0,0.00013698,2]
[334735143,1723519844082,-2037.46,0.00013698,2]
[334735144,1723519844092,-2037.46,0.00013698,2]
[334735145,1723519844101,-2037.46,0.00013698,2]
[334735146,1723519844110,-2037.46,0.00013698,2]
[334735147,1723519844119,-2037.46,0.00013698,2]
[334735148,1723519844129,-2037.46,0.00013698,2]
[334735149,1723519844139,-2037.46,0.00013698,2]
[334735150,1723519844148,-500.0,0.00013698,2]
[334735151,1723519844157,-2037.46,0.00013698,2]
[334735152,1723519844167,-2037.46,0.00013698,2]
[334735153,1723519844176,-2037.46,0.00013698,2]
[334735154,1723519844185,-2037.46,0.00013698,2]
[334735155,1723519844194,-2037.46,0.00013698,2]
[334735156,1723519844203,-2037.46,0.00013698,2]
[334735157,1723519844215,-2037.46,0.00013698,2]
[334735158,1723519844227,-2037.46,0.00013698,2]
[334735159,1723519844239,-2037.46,0.00013698,2]
[334735160,1723519844250,-2037.46,0.00013698,2]
[334735161,1723519844259,-500.0,0.00013698,2]
[334735162,1723519844269,-1145.21,0.00013698,2]
[334735163,1723519844278,-500.0,0.00013698,2]
[334735164,1723519844288,-502.88211469,0.00013698,2]
[334735165,1723519844297,-500.0,0.00013698,2]
[334735166,1723519844307,-500.0,0.00013698,2]
[334735167,1723519844317,-500.0,0.00013698,2]
[334735168,1723519844327,-699.0,0.00013698,2]
[334735169,1723519844338,-500.0,0.00013698,2]
[334735170,1723519844349,-696.73,0.00013698,2]
[334735171,1723519844359,-1395.63,0.00013698,2]
[334735172,1723519844368,-1102.31,0.00013698,2]
[334735173,1723519844378,-500.0,0.00013698,2]
[334735174,1723519844387,-500.0,0.00013698,2]
[334735175,1723519844396,-500.0,0.00013698,2]
[334735176,1723519844406,-666.76,0.00013698,2]
[334735177,1723519844415,-506.11340311,0.00013698,2]
[334735178,1723519844425,-553.09578431,0.00013698,2]
[334735179,1723519844434,-500.0,0.00013698,2]
[334735180,1723519844444,-500.0,0.00013698,2]
[334735181,1723519844454,-500.0,0.00013698,2]
[334735182,1723519844464,-506.70265238,0.00013698,2]
[334735183,1723519844473,-500.0,0.00013698,2]
[334735184,1723519844483,-265.18379765,0.00013698,2]
[334735185,1723519844493,-1039.17,0.00013698,2]
[334735186,1723519844502,-500.0,0.00013698,2]
[334735187,1723519844511,-616.08,0.00013698,2]
[334735188,1723519844521,-680.47,0.00013698,2]
[334735189,1723519844534,-500.0,0.00013698,2]
[334735190,1723519844554,-500.0,0.00013698,2]
[334735191,1723519844565,-500.0,0.00013698,2]
[334735192,1723519844574,-500.0,0.00013698,2]
[334735193,1723519844584,-1297.63,0.00013698,2]
[334735194,1723519844594,-500.0,0.00013698,2]
[334735195,1723519844604,-506.33954523,0.00013698,2]
[334735196,1723519844616,-1039.14,0.00013698,2]
[334735197,1723519844626,-503.68425534,0.00013698,2]
[334735198,1723519844635,-500.0,0.00013698,2]
[334735199,1723519844645,-500.0,0.00013698,2]
[334735200,1723519844655,-500.0,0.00013698,2]
[334735201,1723519844664,-594.76,0.00013698,2]
[334735202,1723519844673,-500.0,0.00013698,2]
[334735203,1723519844683,-500.0,0.00013698,2]
[334735204,1723519844692,-4482.49,0.00013698,2]
[334735205,1723519844703,-500.0,0.00013698,2]
[334735206,1723519844715,-510.26957456,0.00013698,2]
[334735207,1723519844726,-1221.33,0.00013698,2]
[334735208,1723519844738,-500.0,0.00013698,2]
[334735209,1723519844748,-500.0,0.00013698,2]
[334735210,1723519844758,-500.0,0.00013698,2]
[334735211,1723519844768,-500.0,0.00013698,2]
[334735212,1723519844778,-1780.35,0.00013698,2]
[334735213,1723519844789,-712.18,0.00013698,2]
[334735214,1723519844800,-559.40120012,0.00013698,2]
[334735215,1723519844810,-500.0,0.00013698,2]
[334735216,1723519844821,-442.59706221,0.00013698,2]
[334735217,1723519844831,-500.0,0.00013698,2]
[334735218,1723519844842,-2736.37,0.00013698,2]
[334735219,1723519844852,-500.0,0.00013698,2]
[334735220,1723519844862,-500.0,0.00013698,2]
[334735221,1723519844872,-500.0,0.00013698,2]
[334735222,1723519844882,-918.18,0.00013698,2]
[334735223,1723519844895,-551.18,0.00013698,2]
[334735224,1723519844906,-500.0,0.00013698,2]
[334735225,1723519844916,-500.0,0.00013698,2]
[334735226,1723519844927,-24369.94161678,0.00013699,2]
[334735227,1723519845854,-22704.13475062,0.00013699,2]
[334735228,1723519845864,-962.52982,0.00013699,2]
[334735229,1723519845874,-3000.0,0.00013699,2]
[334735230,1723519845883,-2725.6114395,0.00013699,2]
[334735231,1723519845892,-160.15255345,0.00013699,2]
[334735232,1723519845902,-155.12833,0.000137,2]
[334735233,1723519845911,-500.0,0.00013768,2]
[334735234,1723519845921,-150.112233,0.000139,2]
[334735235,1723519845931,-500.0,0.0001395,2]
[334735236,1723519845940,-500.0,0.0001395,2]
[334735237,1723519845950,-500.0,0.0001396,2]
[334735238,1723519845959,-500.0,0.00013961,2]
[334735239,1723519845968,-500.0,0.00013961,2]
[334735240,1723519845978,-500.0,0.00013961,2]
[334735241,1723519845987,-527.53465321,0.00013971,2]
[334735242,1723519845997,-2037.46,0.00013971,2]
[334735243,1723519846006,-2037.46,0.00013971,2]
[334735244,1723519846016,-2037.46,0.00013971,2]
[334735245,1723519846026,-2037.46,0.00013971,2]
[334735246,1723519846035,-2037.56446881,0.00013971,2]
[334735247,1723519846048,-500.0,0.00013972,2]
[334735248,1723519846057,-500.0,0.00013972,2]
[334735249,1723519846066,-500.0,0.00013972,2]
[334735250,1723519846076,-514.03155378,0.00013972,2]
[334735251,1723519846084,-500.0,0.00013972,2]
[334735252,1723519846093,-500.0,0.00013972,2]
[334735253,1723519846103,-506.36585643,0.00013972,2]
[334735254,1723519846112,-500.0,0.00013972,2]
[334735255,1723519846122,-500.0,0.00013972,2]
[334735256,1723519846131,-500.0,0.00013972,2]
[334735257,1723519846141,-500.0,0.00013972,2]
[334735258,1723519846151,-500.0,0.00013972,2]
[334735259,1723519846161,-500.0,0.00013972,2]
[334735260,1723519846171,-500.0,0.00013972,2]
[334735261,1723519846181,-500.0,0.00013972,2]
[334735262,1723519846190,-507.58452473,0.00013972,2]
[334735263,1723519846200,-500.0,0.00013972,2]
[334735264,1723519846209,-384.23911903,0.00013972,2]
[334735265,1723519846218,-1720.67,0.00013972,2]
[334735266,1723519846228,-500.0,0.00013972,2]
[334735267,1723519846237,-500.0,0.00013972,2]
[334735268,1723519846247,-500.0,0.00013972,2]
[334735269,1723519846256,-513.14,0.00013972,2]
[334735270,1723519846266,-500.0,0.00013972,2]
[334735271,1723519846275,-557.67633216,0.00013972,2]
[334735272,1723519846284,-500.0,0.00013972,2]
[334735273,1723519846297,-500.0,0.00013972,2]
[334735274,1723519846306,-500.0,0.00013972,2]
[334735275,1723519846315,-500.0,0.00013972,2]
[334735276,1723519846325,-500.0,0.00013972,2]
[334735277,1723519846335,-500.0,0.00013972,2]
[334735278,1723519846345,-500.0,0.00013972,2]
[334735279,1723519846354,-500.0,0.00013972,2]
[334735280,1723519846363,-500.0,0.00013972,2]
[334735281,1723519846373,-1170.06,0.00013972,2]
[334735282,1723519846382,-500.0,0.00013972,2]
[334735283,1723519846391,-502.59691967,0.00013972,2]
[334735284,1723519846401,-500.0,0.00013972,2]
[334735285,1723519846411,-500.0,0.00013972,2]
[334735286,1723519846420,-500.0,0.00013972,2]
[334735287,1723519846430,-500.0,0.00013972,2]
[334735290,1723519846567,-500.0,0.00013972,2]
[334735291,1723519846579,-500.0,0.00013972,2]
[334735292,1723519846589,-507.18192658,0.00013972,2]
[334735293,1723519846599,-500.0,0.00013972,2]
[334735294,1723519846608,-500.0,0.00013972,2]
[334735295,1723519846619,-638.80619714,0.00013972,2]
[334735296,1723519846629,-500.0,0.00013972,2]
[334735297,1723519846638,-500.0,0.00013972,2]
[334735298,1723519846648,-505.79186455,0.00013972,2]
[334735299,1723519846657,-500.0,0.00013972,2]
[334735300,1723519846667,-503.91324765,0.00013972,2]
[334735301,1723519846676,-500.0,0.00013972,2]
[334735302,1723519846686,-586.27,0.00013972,2]
[334735303,1723519846695,-500.0,0.00013972,2]
[334735304,1723519846705,-500.0,0.00013972,2]
[334735305,1723519846715,-508.37419749,0.00013972,2]
[334735306,1723519846725,-516.34187015,0.00013972,2]
[334735307,1723519846735,-507.34307734,0.00013972,2]
[334735308,1723519846745,-500.0,0.00013972,2]
[334735309,1723519846755,-500.0,0.00013972,2]
[334735310,1723519846764,-500.0,0.00013972,2]
[334735311,1723519846773,-500.0,0.00013972,2]
[334735312,1723519846783,-500.0,0.00013972,2]
[334735313,1723519846793,-500.0,0.00013972,2]
[334735314,1723519846803,-599.42,0.00013972,2]
[334735315,1723519846812,-500.0,0.00013972,2]
[334735316,1723519846821,-500.0,0.00013972,2]
[334735317,1723519846831,-500.0,0.00013972,2]
[334735318,1723519846840,-510.12521374,0.00013972,2]
[334735319,1723519846850,-523.06,0.00013972,2]
[334735320,1723519846859,-500.0,0.00013972,2]
[334735321,1723519846868,-500.0,0.00013972,2]
[334735322,1723519846878,-500.0,0.00013972,2]
[334735323,1723519846887,-500.0,0.00013972,2]
[334735324,1723519846896,-500.0,0.00013972,2]
[334735325,1723519846906,-506.61237687,0.00013972,2]
[334735326,1723519846916,-500.0,0.00013972,2]
[334735327,1723519846926,-500.0,0.00013972,2]
[334735328,1723519846937,-541.02993441,0.00013972,2]
[334735329,1723519846946,-500.0,0.00013972,2]
[334735330,1723519846957,-500.0,0.00013972,2]
[334735331,1723519846966,-500.0,0.00013972,2]
[334735332,1723519846977,-500.0,0.00013972,2]
[334735333,1723519846988,-500.0,0.00013972,2]
[334735334,1723519846998,-476.13085487,0.00013972,2]
[334735335,1723519847007,-500.0,0.00013972,2]
[334735336,1723519847017,-504.34578909,0.00013972,2]
[334735337,1723519847027,-500.0,0.00013972,2]
[334735338,1723519847040,-752.11,0.00013972,2]
[334735339,1723519847051,-500.0,0.00013972,2]
[334735340,1723519847061,-500.0,0.00013972,2]
[334735341,1723519847071,-500.0,0.00013972,2]
[334735342,1723519847082,-625.4,0.00013972,2]
[334735343,1723519847093,-500.0,0.00013972,2]
[334735344,1723519847104,-500.0,0.00013972,2]
[334735345,1723519847113,-508.46727453,0.00013972,2]
[334735346,1723519847123,-500.0,0.00013972,2]
[334735347,1723519847134,-500.0,0.00013972,2]
[334735348,1723519847145,-500.0,0.00013972,2]
[334735349,1723519847156,-547.48,0.00013972,2]
[334735350,1723519847166,-500.0,0.00013972,2]
[334735351,1723519847178,-500.0,0.00013972,2]
[334735352,1723519847189,-500.0,0.00013972,2]
[334735354,1723519847199,-500.0,0.00013972,2]
[334735356,1723519847211,-500.0,0.00013972,2]
[334735358,1723519847221,-500.0,0.00013972,2]
[334735360,1723519847233,-500.0,0.00013972,2]